Workbook

Sheet Cover
A1: =RIGHT(CELL("filename", $A$1), LEN(CELL("filename", $A$1)) - SEARCH("]", CELL("filename", $A$1))) -> Cover
C3: Model name: | D3: PR19 RCV indexation illustrated model
C4: Version number: | D4: Version 1
C5: Filename: | D5: =SUBSTITUTE(LEFT(CELL("filename"),FIND("]",CELL("filename"))-1),"[","") -> https://ofwat.sharepoint.com/sites/rms/pr-w20/fp-rr/Modelling - PR19 feeder models/Policy and Analysis/PR19 RCV indexation illustrated model.xlsm
C6: Date: | D6: 2017-12-13
C7: Author: | D7: Robert Thorp
C8: Author contact information: | D8: robert.thorp@ofwat.gsi.gov.uk
D9: financial.modelling@ofwat.gsi.gov.uk
C12: Summary of model: | D12: The model is designed to provide a simplified illustration of the indexation of RCV that occurs between the RCV feeder model and the PR19 financial model.
D13: The inputs in this model are purely illustrative. They should not be taken as a statement of policy.
A17: End of sheet

Sheet Map & Key
A1: =RIGHT(CELL("filename", $A$1), LEN(CELL("filename", $A$1)) - SEARCH("]", CELL("filename", $A$1))) -> Map & Key
A4: MODEL MAP
F6: MODEL MAP
H8: INPUTS | L8: CALCULATIONS | V8: DOCUMENTATION
H12: =Inputs!$A$1 -> Inputs | L12: =Time!$A$1 -> Time | P12: =Calc!$A$1 -> Calc | V12: =$A$1 -> Map & Key
H13: All the hardcoded inputs used in the model for calculation. | L13: The model timeline and flag calculations are done in this sheet. | P13: Calculation of RCV balance at different price bases | V13: Sheet references and model flow; Sheet tabs colours, colour coding, abbreviations, range names are mentioned in this sheet.
L15: =Indexation!$A$1 -> Indexation
L16: Key indexation calculations that appear in the RCV feeder model and PR19 financial model are repeated here.
A24: SHEET TABS
H26: Light Yellow | J26: Input sheets
H28: No colour (default Excel tab colour) | J28: Calculation and documentation sheets
H30: Pale Blue | J30: Key output sheets
H32: Turquoise | J32: Quality control sheets
H34: Yellow | J34: To be completed, temporary, restructured, or deleted
A37: COLOUR
B39: Font colour only
H40: Blue font | J40: Imported from another sheet
H42: Red font | J42: Exported to another sheet (except from Input sheets)
H44: Black font | J44: Within sheet link or calculation
B46: Font + shade combinations
H47: Black font + Light Yellow shade | J47: Inputs
H49: Black font + Light Grey shade on entire row | J49: Within-worksheet counter-flow
H51: Blue font + Light Grey shade on entire row | J51: Between-worksheet counter-flow
H53: Empty Cell with Light Grey shade | J53: Empty cells being deliberately referenced
B55: Other
H56: Black font + Pale Blue shade on entire row | J56: Section separator
H58: Light Turquoise shade | J58: Stored/dead/hard coded outputs
H60: Tan shade | J60: Pre-model time line actuals
H62: Yellow shade | J62: Work in progress / temporary
H64: Lime shade | J64: Values or logic to be reviewed
B66: Error checks & alerts
H67: Green shade | J67: OK
H69: Red shade | J69: Error
H71: Gold shade | J71: Alert
A74: ABBREVIATIONS
H76: CPIH | I76: Consumer price index housing
H77: RCV | I77: Regulatory capital value
H78: RPI | I78: Retail price index
H79: FYA | I79: Financial Year Average
H80: FYE | I80: Financial Year Ending
A83: NAMES
H85: NO NAME RANGES PRESENT IN THE MODEL
A88: LIST OF MAIN FUNCTIONS USED
H90: SUMPRODUCT | J90: Multiplies corresponding components in the given arrays, and returns the sum of those products.
H91: MATCH | J91: The MATCH function searches for a specified item in a range of cells, and then returns the relative position of that item in the range.
H92: INDEX | J92: Returns a value or the reference to a value from within a table or range, selected by the row and column number indexes
H93: AVERAGE | J93: Returns the arithmetic mean of the arguments
A95: End of sheet

Sheet Inputs
A1: =RIGHT(CELL("FILENAME", $A$1), LEN(CELL("FILENAME", $A$1)) - SEARCH("]", CELL("FILENAME", $A$1))) -> Inputs
E2: =Time!E$25 -> Model period ending | J2: =Time!J$25 -> 2013-03-31 | K2: =Time!K$25 -> 2014-03-31 | L2: =Time!L$25 -> 2015-03-31 | M2: =Time!M$25 -> 2016-03-31 | N2: =Time!N$25 -> 2017-03-31 | O2: =Time!O$25 -> 2018-03-31 | P2: =Time!P$25 -> 2019-03-31 | Q2: =Time!Q$25 -> 2020-03-31 | R2: =Time!R$25 -> 2021-03-31 | S2: =Time!S$25 -> 2022-03-31 | T2: =Time!T$25 -> 2023-03-31 | U2: =Time!U$25 -> 2024-03-31
E3: =Time!E$80 -> Timeline label | J3: =Time!J$80 -> Pre-Fcst | K3: =Time!K$80 -> Pre-Fcst | L3: =Time!L$80 -> Pre-Fcst | M3: =Time!M$80 -> Pre-Fcst | N3: =Time!N$80 -> Pre-Fcst | O3: =Time!O$80 -> Pre-Fcst | P3: =Time!P$80 -> Pre-Fcst | Q3: =Time!Q$80 -> Pre-Fcst | R3: =Time!R$80 -> Forecast | S3: =Time!S$80 -> Forecast | T3: =Time!T$80 -> Forecast | U3: =Time!U$80 -> Forecast
E4: =Time!E$103 -> Financial year ending | J4: =Time!J$103 -> 2013 | K4: =Time!K$103 -> 2014 | L4: =Time!L$103 -> 2015 | M4: =Time!M$103 -> 2016 | N4: =Time!N$103 -> 2017 | O4: =Time!O$103 -> 2018 | P4: =Time!P$103 -> 2019 | Q4: =Time!Q$103 -> 2020 | R4: =Time!R$103 -> 2021 | S4: =Time!S$103 -> 2022 | T4: =Time!T$103 -> 2023 | U4: =Time!U$103 -> 2024
A5: =IF(COUNTIF(A6:A144,"< 0") + COUNTIF(A6:A144,">0") <> 0, 1, 0) -> 0 | D5: Input references | E5: =Time!E$10 -> Model column counter | F5: Constant | G5: Unit | H5: Total | J5: =Time!J$10 -> 1 | K5: =Time!K$10 -> 2 | L5: =Time!L$10 -> 3 | M5: =Time!M$10 -> 4 | N5: =Time!N$10 -> 5 | O5: =Time!O$10 -> 6 | P5: =Time!P$10 -> 7 | Q5: =Time!Q$10 -> 8 | R5: =Time!R$10 -> 9 | S5: =Time!S$10 -> 10 | T5: =Time!T$10 -> 11 | U5: =Time!U$10 -> 12
E6: [Used in formula range - Do not delete]
A8: A: TIME
B10: Timeline setup
C12: Timeline start dates
E13: 1st model column start date | F13: 2012-04-01 | G13: date | H13: Date should be the first date of the financial year
C15: Financial year inputs
E16: First modelling column financial year# | F16: 2013 | G16: year # | H16: Financial model start year
E17: Financial year end month number | F17: 3 | G17: month # | H17: Month of financial year end for financial model
C19: Timeline labels
E20: Pre - forecast period | F20: Pre-Fcst | G20: label
E21: Forecast period | F21: Forecast | G21: label
E22: Post - forecast period | F22: Post-Fcst | G22: label
B24: Project dates
E26: Initial balance date | F26: 2020-03-31 | G26: date
E27: Forecast start date | F27: 2020-04-01 | G27: date
E28: Forecast duration | F28: 5 | G28: years
E29: Forecast duration (text) | F29: =YEAR(F27) & "-" & TEXT(DATE(YEAR(F27) + F28, 1, 1), "yy") -> 2020-25 | G29: years #
A32: B: INDEXATION
B34: CPIH INDEXATION
E36: Consumer Price Index for April | G36: index | J36: 95.9 | K36: 98 | L36: 99.6 | M36: 99.9 | N36: 100.6 | O36: 103.2
E37: Consumer Price Index for May | G37: index | J37: 95.9 | K37: 98.2 | L37: 99.6 | M37: 100.1 | N37: 100.8 | O37: 103.5
E38: Consumer Price Index for June | G38: index | J38: 95.6 | K38: 98 | L38: 99.8 | M38: 100.1 | N38: 101 | O38: =O37+0.2 -> 103.7
E39: Consumer Price Index for July | G39: index | J39: 95.7 | K39: 98 | L39: 99.6 | M39: 100 | N39: 100.9 | O39: =O38+0.2 -> 103.9
E40: Consumer Price Index for August | G40: index | J40: 96.1 | K40: 98.4 | L40: 99.9 | M40: 100.3 | N40: 101.2 | O40: 104.1
E41: Consumer Price Index for September | G41: index | J41: 96.4 | K41: 98.7 | L41: 100 | M41: 100.2 | N41: 101.5 | O41: 104.3
E42: Consumer Price Index for October | G42: index | J42: 96.8 | K42: 98.8 | L42: 100.1 | M42: 100.3 | N42: 101.6 | O42: 104.5
E43: Consumer Price Index for November | G43: index | J43: 97 | K43: 98.8 | L43: 99.9 | M43: 100.3 | N43: 101.8 | O43: 104.7
E44: Consumer Price Index for December | G44: index | J44: 97.3 | K44: 99.2 | L44: 99.9 | M44: 100.4 | N44: 102.2 | O44: 104.9
E45: Consumer Price Index for January | G45: index | J45: 97 | K45: 98.7 | L45: 99.2 | M45: 99.9 | N45: 101.8 | O45: 105.1
E46: Consumer Price Index for February | G46: index | J46: 97.5 | K46: 99.1 | L46: 99.5 | M46: 100.1 | N46: 102.4 | O46: 105.3
E47: Consumer Price Index for March | G47: index | J47: 97.8 | K47: 99.3 | L47: 99.6 | M47: 100.4 | N47: 102.7 | O47: 105.5
E49: CPIH: Assumed percentage increase for unpopulated monthly values | G49: % | P49: 0.02 | Q49: 0.02
E51: Consumer Price Index for April | F51: 103.2 | G51: index
E52: Consumer Price Index for May | F52: 103.5 | G52: index
E53: Consumer Price Index for June | F53: 103.7 | G53: index
E54: Consumer Price Index for July | F54: 103.9 | G54: index
E55: Consumer Price Index for August | F55: 104.1 | G55: index
E56: Consumer Price Index for September | F56: 104.3 | G56: index
E57: Consumer Price Index for October | F57: 104.5 | G57: index
E58: Consumer Price Index for November | F58: 104.7 | G58: index
E59: Consumer Price Index for December | F59: 104.9 | G59: index
E60: Consumer Price Index for January | F60: 105.1 | G60: index
E61: Consumer Price Index for February | F61: 105.3 | G61: index
E62: Consumer Price Index for March | F62: 105.5 | G62: index
B65: RPI INDEXATION
E67: Retail Price Index for April | G67: index | J67: 242.5 | K67: 249.5 | L67: 255.7 | M67: 258 | N67: 261.4 | O67: 270.6
E68: Retail Price Index for May | G68: index | J68: 242.4 | K68: 250 | L68: 255.9 | M68: 258.5 | N68: 262.1 | O68: 271.7
E69: Retail Price Index for June | G69: index | J69: 241.8 | K69: 249.7 | L69: 256.3 | M69: 258.9 | N69: 263.1 | O69: =O68+0.3 -> 272
E70: Retail Price Index for July | G70: index | J70: 242.1 | K70: 249.7 | L70: 256 | M70: 258.6 | N70: 263.4 | O70: =O69+0.3 -> 272.3
E71: Retail Price Index for August | G71: index | J71: 243 | K71: 251 | L71: 257 | M71: 259.8 | N71: 264.4 | O71: 272.6
E72: Retail Price Index for September | G72: index | J72: 244.2 | K72: 251.9 | L72: 257.6 | M72: 259.6 | N72: 264.9 | O72: 272.9
E73: Retail Price Index for October | G73: index | J73: 245.6 | K73: 251.9 | L73: 257.7 | M73: 259.5 | N73: 264.8 | O73: 273.2
E74: Retail Price Index for November | G74: index | J74: 245.6 | K74: 252.1 | L74: 257.1 | M74: 259.8 | N74: 265.5 | O74: 273.5
E75: Retail Price Index for December | G75: index | J75: 246.8 | K75: 253.4 | L75: 257.5 | M75: 260.6 | N75: 267.1 | O75: 273.8
E76: Retail Price Index for January | G76: index | J76: 245.8 | K76: 252.6 | L76: 255.4 | M76: 258.8 | N76: 265.5 | O76: 274.1
E77: Retail Price Index for February | G77: index | J77: 247.6 | K77: 254.2 | L77: 256.7 | M77: 260 | N77: 268.4 | O77: 274.4
E78: Retail Price Index for March | G78: index | J78: 248.7 | K78: 254.8 | L78: 257.1 | M78: 261.1 | N78: 269.3 | O78: 274.7
E80: RPI: Assumed percentage increase for unpopulated monthly values | G80: % | P80: 0.028 | Q80: 0.028
B82: Inflation
E84: Year reference for FYA base price 1 | F84: 2013 | G84: year #
E85: Year reference for FYA base price 2 | F85: 2018 | G85: year #
E86: Year reference for FYE base price | F86: 2018 | G86: year #
E87: Year reference for FYE end price | F87: 2020 | G87: year #
B89: Deflation
E91: Year reference for FYE base price | F91: 2020 | G91: year #
E92: Year reference for FYA end price | F92: 2018 | G92: year #
A131: C: RCV INPUTS
E133: RCV at 31 March 2020 (from PR14 FD) post adjustment | F133: 100 | G133: £m | H133: 2012/13 FYA
A135: D: NON CHANGEABLE MODEL TECHNICAL INPUTS
E137: Months per model period | F137: 12 | G137: months
E139: Months in a year | F139: 12 | G139: months
E141: Days in a year | F141: 365 | G141: days
E144: [Used in formula range - Do not delete]
A146: End of sheet

Sheet Time
A1: =RIGHT(CELL("FILENAME", $A$1), LEN(CELL("FILENAME", $A$1)) - SEARCH("]", CELL("FILENAME", $A$1))) -> Time
E2: =Time!E$25 -> Model period ending | J2: =Time!J$25 -> 2013-03-31 | K2: =Time!K$25 -> 2014-03-31 | L2: =Time!L$25 -> 2015-03-31 | M2: =Time!M$25 -> 2016-03-31 | N2: =Time!N$25 -> 2017-03-31 | O2: =Time!O$25 -> 2018-03-31 | P2: =Time!P$25 -> 2019-03-31 | Q2: =Time!Q$25 -> 2020-03-31 | R2: =Time!R$25 -> 2021-03-31 | S2: =Time!S$25 -> 2022-03-31 | T2: =Time!T$25 -> 2023-03-31 | U2: =Time!U$25 -> 2024-03-31
E3: =Time!E$80 -> Timeline label | J3: =Time!J$80 -> Pre-Fcst | K3: =Time!K$80 -> Pre-Fcst | L3: =Time!L$80 -> Pre-Fcst | M3: =Time!M$80 -> Pre-Fcst | N3: =Time!N$80 -> Pre-Fcst | O3: =Time!O$80 -> Pre-Fcst | P3: =Time!P$80 -> Pre-Fcst | Q3: =Time!Q$80 -> Pre-Fcst | R3: =Time!R$80 -> Forecast | S3: =Time!S$80 -> Forecast | T3: =Time!T$80 -> Forecast | U3: =Time!U$80 -> Forecast
E4: =Time!E$103 -> Financial year ending | J4: =Time!J$103 -> 2013 | K4: =Time!K$103 -> 2014 | L4: =Time!L$103 -> 2015 | M4: =Time!M$103 -> 2016 | N4: =Time!N$103 -> 2017 | O4: =Time!O$103 -> 2018 | P4: =Time!P$103 -> 2019 | Q4: =Time!Q$103 -> 2020 | R4: =Time!R$103 -> 2021 | S4: =Time!S$103 -> 2022 | T4: =Time!T$103 -> 2023 | U4: =Time!U$103 -> 2024
E5: =Time!E$10 -> Model column counter | F5: Constant | G5: Unit | H5: Total | J5: =Time!J$10 -> 1 | K5: =Time!K$10 -> 2 | L5: =Time!L$10 -> 3 | M5: =Time!M$10 -> 4 | N5: =Time!N$10 -> 5 | O5: =Time!O$10 -> 6 | P5: =Time!P$10 -> 7 | Q5: =Time!Q$10 -> 8 | R5: =Time!R$10 -> 9 | S5: =Time!S$10 -> 10 | T5: =Time!T$10 -> 11 | U5: =Time!U$10 -> 12
A7: MODEL PERIOD
B9: Model column counter
E10: Model column counter | G10: counter | J10: =I10 + 1 -> 1 | K10: 2 | L10: 3 | M10: 4 | N10: 5 | O10: 6 | P10: 7 | Q10: 8 | R10: 9 | S10: =R10 + 1 -> 10 | T10: =S10 + 1 -> 11 | U10: =T10 + 1 -> 12
E11: Model column total | F11: =MAX(J10:U10) -> 12 | G11: columns
E13: =E$10 -> Model column counter | F13: 0 | G13: counter | H13: 0 | I13: 0 | J13: 1 | K13: 2 | L13: 3 | M13: 4 | N13: 5 | O13: 6 | P13: 7 | Q13: 8 | R13: 9 | S13: 10 | T13: 11 | U13: 12
E14: 1st model column flag | G14: flag | H14: =SUM(J14:U14) -> 1 | J14: =IF(J13 = 1, 1, 0) -> 1 | K14: 0 | L14: 0 | M14: 0 | N14: 0 | O14: 0 | P14: 0 | Q14: 0 | R14: 0 | S14: =IF(S13 = 1, 1, 0) -> 0 | T14: =IF(T13 = 1, 1, 0) -> 0 | U14: =IF(U13 = 1, 1, 0) -> 0
B16: Model period beginning
E17: =Inputs!E$13 -> 1st model column start date | F17: =Inputs!F$13 -> 2012-04-01 | G17: =Inputs!G$13 -> date
E18: =Inputs!E$137 -> Months per model period | F18: =Inputs!F$137 -> 12 | G18: =Inputs!G$137 -> months
E19: =E$14 -> 1st model column flag | F19: 0 | G19: flag | H19: 1 | I19: 0 | J19: 1 | K19: 0 | L19: 0 | M19: 0 | N19: 0 | O19: 0 | P19: 0 | Q19: 0 | R19: 0 | S19: 0 | T19: 0 | U19: 0
E20: Model period beginning | G20: date | J20: =IF(J19 = 1, $F17, DATE(YEAR(I20), MONTH(I20) + $F18, DAY(1))) -> 2012-04-01 | K20: 2013-04-01 | L20: 2014-04-01 | M20: 2015-04-01 | N20: 2016-04-01 | O20: 2017-04-01 | P20: 2018-04-01 | Q20: 2019-04-01 | R20: 2020-04-01 | S20: =IF(S19 = 1, $F17, DATE(YEAR(R20), MONTH(R20) + $F18, DAY(1))) -> 2021-04-01 | T20: =IF(T19 = 1, $F17, DATE(YEAR(S20), MONTH(S20) + $F18, DAY(1))) -> 2022-04-01 | U20: =IF(U19 = 1, $F17, DATE(YEAR(T20), MONTH(T20) + $F18, DAY(1))) -> 2023-04-01
B22: Model period ending
E23: =Inputs!E$137 -> Months per model period | F23: =Inputs!F$137 -> 12 | G23: =Inputs!G$137 -> months
E24: =E$20 -> Model period beginning | F24: 00:00:00 | G24: date | H24: 00:00:00 | I24: 00:00:00 | J24: 2012-04-01 | K24: 2013-04-01 | L24: 2014-04-01 | M24: 2015-04-01 | N24: 2016-04-01 | O24: 2017-04-01 | P24: 2018-04-01 | Q24: 2019-04-01 | R24: 2020-04-01 | S24: 2021-04-01 | T24: 2022-04-01 | U24: 2023-04-01
E25: Model period ending | G25: date | J25: =DATE(YEAR(J24), MONTH(J24) + $F23, DAY(J24) - 1) -> 2013-03-31 | K25: 2014-03-31 | L25: 2015-03-31 | M25: 2016-03-31 | N25: 2017-03-31 | O25: 2018-03-31 | P25: 2019-03-31 | Q25: 2020-03-31 | R25: 2021-03-31 | S25: =DATE(YEAR(S24), MONTH(S24) + $F23, DAY(S24) - 1) -> 2022-03-31 | T25: =DATE(YEAR(T24), MONTH(T24) + $F23, DAY(T24) - 1) -> 2023-03-31 | U25: =DATE(YEAR(U24), MONTH(U24) + $F23, DAY(U24) - 1) -> 2024-03-31
A28: FORECAST PERIOD
B30: Forecast start period flag
E31: =Inputs!E$27 -> Forecast start date | F31: =Inputs!F$27 -> 2020-04-01 | G31: =Inputs!G$27 -> date
E32: =E$20 -> Model period beginning | F32: 00:00:00 | G32: date | H32: 00:00:00 | I32: 00:00:00 | J32: 2012-04-01 | K32: 2013-04-01 | L32: 2014-04-01 | M32: 2015-04-01 | N32: 2016-04-01 | O32: 2017-04-01 | P32: 2018-04-01 | Q32: 2019-04-01 | R32: 2020-04-01 | S32: 2021-04-01 | T32: 2022-04-01 | U32: 2023-04-01
E33: =E$25 -> Model period ending | F33: 00:00:00 | G33: date | H33: 00:00:00 | I33: 00:00:00 | J33: 2013-03-31 | K33: 2014-03-31 | L33: 2015-03-31 | M33: 2016-03-31 | N33: 2017-03-31 | O33: 2018-03-31 | P33: 2019-03-31 | Q33: 2020-03-31 | R33: 2021-03-31 | S33: 2022-03-31 | T33: 2023-03-31 | U33: 2024-03-31
E34: Forecast start period flag | G34: flag | H34: =SUM(J34:U34) -> 1 | J34: =IF(AND($F31 >= J32, $F31 <= J33), 1, 0) -> 0 | K34: =IF(AND($F31 >= K32, $F31 <= K33), 1, 0) -> 0 | L34: 0 | M34: 0 | N34: 0 | O34: 0 | P34: 0 | Q34: 0 | R34: 1 | S34: =IF(AND($F31 >= S32, $F31 <= S33), 1, 0) -> 0 | T34: =IF(AND($F31 >= T32, $F31 <= T33), 1, 0) -> 0 | U34: =IF(AND($F31 >= U32, $F31 <= U33), 1, 0) -> 0
B36: Forecast end period flag
E37: =Inputs!E$27 -> Forecast start date | F37: =Inputs!F$27 -> 2020-04-01 | G37: =Inputs!G$27 -> date
E38: =Inputs!E$28 -> Forecast duration | F38: =Inputs!F$28 -> 5 | G38: =Inputs!G$28 -> years
E39: Forecast end date | F39: =DATE(YEAR(F37) + F38, MONTH(F37), DAY(F37) - 1) -> 2025-03-31 | G39: date
E41: =E$39 -> Forecast end date | F41: =F$39 -> 2025-03-31 | G41: =G$39 -> date
E42: =E$20 -> Model period beginning | F42: 00:00:00 | G42: date | H42: 00:00:00 | I42: 00:00:00 | J42: 2012-04-01 | K42: 2013-04-01 | L42: 2014-04-01 | M42: 2015-04-01 | N42: 2016-04-01 | O42: 2017-04-01 | P42: 2018-04-01 | Q42: 2019-04-01 | R42: 2020-04-01 | S42: 2021-04-01 | T42: 2022-04-01 | U42: 2023-04-01
E43: =E$25 -> Model period ending | F43: 00:00:00 | G43: date | H43: 00:00:00 | I43: 00:00:00 | J43: 2013-03-31 | K43: 2014-03-31 | L43: 2015-03-31 | M43: 2016-03-31 | N43: 2017-03-31 | O43: 2018-03-31 | P43: 2019-03-31 | Q43: 2020-03-31 | R43: 2021-03-31 | S43: 2022-03-31 | T43: 2023-03-31 | U43: 2024-03-31
E44: Forecast end period flag | G44: flag | H44: =SUM(J44:U44) -> 0 | J44: =IF(AND($F41 >= J42, $F41 <= J43), 1, 0) -> 0 | K44: 0 | L44: 0 | M44: 0 | N44: 0 | O44: 0 | P44: 0 | Q44: 0 | R44: 0 | S44: 0 | T44: 0 | U44: 0
B46: Forecast period flag
E47: =E$34 -> Forecast start period flag | F47: =F$34 -> 0 | G47: flag | H47: 1 | I47: 0 | J47: 0 | K47: 0 | L47: 0 | M47: 0 | N47: 0 | O47: 0 | P47: 0 | Q47: 0 | R47: 1 | S47: 0 | T47: 0 | U47: 0
E48: =E$44 -> Forecast end period flag | F48: =F$44 -> 0 | G48: flag | H48: 0 | I48: 0 | J48: 0 | K48: 0 | L48: 0 | M48: 0 | N48: 0 | O48: 0 | P48: 0 | Q48: 0 | R48: 0 | S48: 0 | T48: 0 | U48: 0
E49: Forecast period flag | G49: flag | H49: =SUM(J49:U49) -> 4 | J49: =J47 + I49 - I48 -> 0 | K49: =K47 + J49 - J48 -> 0 | L49: 0 | M49: 0 | N49: 0 | O49: 0 | P49: 0 | Q49: 0 | R49: 1 | S49: =S47 + R49 - R48 -> 1 | T49: =T47 + S49 - S48 -> 1 | U49: =U47 + T49 - T48 -> 1
E50: Total number of forecast periods | F50: =SUM(J49:U49) -> 4 | G50: periods
B52: Pre-forecast period flag
E53: =E$14 -> 1st model column flag | F53: =F$14 -> 0 | G53: flag | H53: 1 | I53: 0 | J53: 1 | K53: 0 | L53: 0 | M53: 0 | N53: 0 | O53: 0 | P53: 0 | Q53: 0 | R53: 0 | S53: 0 | T53: 0 | U53: 0
E54: =E$34 -> Forecast start period flag | F54: =F$34 -> 0 | G54: flag | H54: 1 | I54: 0 | J54: 0 | K54: 0 | L54: 0 | M54: 0 | N54: 0 | O54: 0 | P54: 0 | Q54: 0 | R54: 1 | S54: 0 | T54: 0 | U54: 0
E55: Pre-forecast period flag | G55: flag | H55: =SUM(J55:U55) -> 8 | J55: =J53 + I55 - J54 -> 1 | K55: =K53 + J55 - K54 -> 1 | L55: 1 | M55: 1 | N55: 1 | O55: 1 | P55: 1 | Q55: 1 | R55: 0 | S55: =S53 + R55 - S54 -> 0 | T55: =T53 + S55 - T54 -> 0 | U55: =U53 + T55 - U54 -> 0
E56: Pre-forecast period flag - total | F56: =SUM(J55:U55) -> 8 | G56: periods
B58: First post-forecast period flag
E59: =E$44 -> Forecast end period flag | F59: =F$44 -> 0 | G59: flag | H59: 0 | I59: 0 | J59: 0 | K59: 0 | L59: 0 | M59: 0 | N59: 0 | O59: 0 | P59: 0 | Q59: 0 | R59: 0 | S59: 0 | T59: 0 | U59: 0
E60: First post-forecast period flag | G60: flag | H60: =SUM(J60:U60) -> 0 | J60: =I59 -> 0 | K60: =J59 -> 0 | L60: 0 | M60: 0 | N60: 0 | O60: 0 | P60: 0 | Q60: 0 | R60: 0 | S60: =R59 -> 0 | T60: =S59 -> 0 | U60: =T59 -> 0
B62: Post-forecast period flag
E63: =E$60 -> First post-forecast period flag | F63: 0 | G63: flag | H63: 0 | I63: 0 | J63: 0 | K63: 0 | L63: 0 | M63: 0 | N63: 0 | O63: 0 | P63: 0 | Q63: 0 | R63: 0 | S63: 0 | T63: 0 | U63: 0
E64: Post-forecast period flag | G64: flag | H64: =SUM(J64:U64) -> 0 | J64: =J63 + I64 -> 0 | K64: =K63 + J64 -> 0 | L64: 0 | M64: 0 | N64: 0 | O64: 0 | P64: 0 | Q64: 0 | R64: 0 | S64: =S63 + R64 -> 0 | T64: =T63 + S64 -> 0 | U64: =U63 + T64 -> 0
E65: Post-forecast period - total | F65: =SUM(J64:U64) -> 0 | G65: periods
A67: MODEL TIMELINE
B70: Timeline label
E71: =E$14 -> 1st model column flag | F71: 0 | G71: flag | H71: 1 | I71: 0 | J71: 1 | K71: 0 | L71: 0 | M71: 0 | N71: 0 | O71: 0 | P71: 0 | Q71: 0 | R71: 0 | S71: 0 | T71: 0 | U71: 0
E72: =E$34 -> Forecast start period flag | F72: =F$34 -> 0 | G72: flag | H72: 1 | I72: 0 | J72: 0 | K72: 0 | L72: 0 | M72: 0 | N72: 0 | O72: 0 | P72: 0 | Q72: 0 | R72: 1 | S72: 0 | T72: 0 | U72: 0
E73: =E$60 -> First post-forecast period flag | F73: 0 | G73: flag | H73: 0 | I73: 0 | J73: 0 | K73: 0 | L73: 0 | M73: 0 | N73: 0 | O73: 0 | P73: 0 | Q73: 0 | R73: 0 | S73: 0 | T73: 0 | U73: 0
E74: Timeline label counter | G74: counter | J74: =I74 + SUM(J71:J73) -> 1 | K74: 1 | L74: 1 | M74: 1 | N74: 1 | O74: 1 | P74: 1 | Q74: 1 | R74: 2 | S74: =R74 + SUM(S71:S73) -> 2 | T74: =S74 + SUM(T71:T73) -> 2 | U74: =T74 + SUM(U71:U73) -> 2
E76: =Inputs!E$20 -> Pre - forecast period | F76: =Inputs!F$20 -> Pre-Fcst | G76: =Inputs!G$20 -> label
E77: =Inputs!E$21 -> Forecast period | F77: =Inputs!F$21 -> Forecast | G77: =Inputs!G$21 -> label
E78: =Inputs!E$22 -> Post - forecast period | F78: =Inputs!F$22 -> Post-Fcst | G78: =Inputs!G$22 -> label
E79: =E$74 -> Timeline label counter | F79: 0 | G79: counter | H79: 0 | I79: 0 | J79: 1 | K79: 1 | L79: 1 | M79: 1 | N79: 1 | O79: 1 | P79: 1 | Q79: 1 | R79: 2 | S79: 2 | T79: 2 | U79: 2
E80: Timeline label | G80: label | J80: =INDEX($F76:$F78, J79) -> Pre-Fcst | K80: Pre-Fcst | L80: Pre-Fcst | M80: Pre-Fcst | N80: Pre-Fcst | O80: Pre-Fcst | P80: Pre-Fcst | Q80: Pre-Fcst | R80: Forecast | S80: =INDEX($F76:$F78, S79) -> Forecast | T80: =INDEX($F76:$F78, T79) -> Forecast | U80: =INDEX($F76:$F78, U79) -> Forecast
B82: Modelling period check
E83: =E$55 -> Pre-forecast period flag | F83: =F$55 -> 0 | G83: flag | H83: 8 | I83: 0 | J83: 1 | K83: 1 | L83: 1 | M83: 1 | N83: 1 | O83: 1 | P83: 1 | Q83: 1 | R83: 0 | S83: 0 | T83: 0 | U83: 0
E84: =E$49 -> Forecast period flag | F84: =F$49 -> 0 | G84: flag | H84: 4 | I84: 0 | J84: 0 | K84: 0 | L84: 0 | M84: 0 | N84: 0 | O84: 0 | P84: 0 | Q84: 0 | R84: 1 | S84: 1 | T84: 1 | U84: 1
E85: =E$64 -> Post-forecast period flag | F85: 0 | G85: flag | H85: 0 | I85: 0 | J85: 0 | K85: 0 | L85: 0 | M85: 0 | N85: 0 | O85: 0 | P85: 0 | Q85: 0 | R85: 0 | S85: 0 | T85: 0 | U85: 0
E86: No. of overlapping in flags | G86: # | H86: =SUM(J86:U86) -> 0 | J86: =MAX(0, SUM(J83:J85) - 1) -> 0 | K86: 0 | L86: 0 | M86: 0 | N86: 0 | O86: 0 | P86: 0 | Q86: 0 | R86: 0 | S86: =MAX(0, SUM(S83:S85) - 1) -> 0 | T86: =MAX(0, SUM(T83:T85) - 1) -> 0 | U86: =MAX(0, SUM(U83:U85) - 1) -> 0
E87: Overlapping in periods - total | F87: =SUM(J86:U86) -> 0 | G87: periods
E89: =E$11 -> Model column total | F89: =F$11 -> 12 | G89: =G$11 -> columns
E90: =E$87 -> Overlapping in periods - total | F90: =F$87 -> 0 | G90: =G$87 -> periods
E91: =E$56 -> Pre-forecast period flag - total | F91: =F$56 -> 8 | G91: =G$56 -> periods
E92: =E$50 -> Total number of forecast periods | F92: =F$50 -> 4 | G92: =G$50 -> periods
E93: =E$65 -> Post-forecast period - total | F93: =F$65 -> 0 | G93: =G$65 -> periods
E94: Modelling period check | F94: =IF(SUM(F89:F90) - SUM(F91:F93) <> 0, 1, 0) -> 0 | G94: check
A97: FINANCIAL YEAR
E99: =Inputs!E$16 -> First modelling column financial year# | F99: =Inputs!F$16 -> 2013 | G99: =Inputs!G$16 -> year #
E100: =Inputs!E$17 -> Financial year end month number | F100: =Inputs!F$17 -> 3 | G100: =Inputs!G$17 -> month #
E101: =E$25 -> Model period ending | F101: 00:00:00 | G101: date | H101: 00:00:00 | I101: 00:00:00 | J101: 2013-03-31 | K101: 2014-03-31 | L101: 2015-03-31 | M101: 2016-03-31 | N101: 2017-03-31 | O101: 2018-03-31 | P101: 2019-03-31 | Q101: 2020-03-31 | R101: 2021-03-31 | S101: 2022-03-31 | T101: 2023-03-31 | U101: 2024-03-31
E102: =E$14 -> 1st model column flag | F102: 0 | G102: flag | H102: 1 | I102: 0 | J102: 1 | K102: 0 | L102: 0 | M102: 0 | N102: 0 | O102: 0 | P102: 0 | Q102: 0 | R102: 0 | S102: 0 | T102: 0 | U102: 0
E103: Financial year ending | G103: year # | J103: =IF(J102 = 1, $F99, IF(J101 > (DATE(I103, $F100 + 1, 1) - 1), I103 + 1, I103)) -> 2013 | K103: 2014 | L103: 2015 | M103: 2016 | N103: 2017 | O103: 2018 | P103: 2019 | Q103: 2020 | R103: 2021 | S103: =IF(S102 = 1, $F99, IF(S101 > (DATE(R103, $F100 + 1, 1) - 1), R103 + 1, R103)) -> 2022 | T103: =IF(T102 = 1, $F99, IF(T101 > (DATE(S103, $F100 + 1, 1) - 1), S103 + 1, S103)) -> 2023 | U103: =IF(U102 = 1, $F99, IF(U101 > (DATE(T103, $F100 + 1, 1) - 1), T103 + 1, T103)) -> 2024
A106: End of sheet
E109: =Inputs!E$26 -> Initial balance date | F109: =Inputs!F$26 -> 2020-03-31 | G109: =Inputs!G$26 -> date
E110: =E$25 -> Model period ending | F110: 00:00:00 | G110: date | H110: 00:00:00 | I110: 00:00:00 | J110: 2013-03-31 | K110: 2014-03-31 | L110: 2015-03-31 | M110: 2016-03-31 | N110: 2017-03-31 | O110: 2018-03-31 | P110: 2019-03-31 | Q110: 2020-03-31 | R110: 2021-03-31 | S110: 2022-03-31 | T110: 2023-03-31 | U110: 2024-03-31
E111: Acquisition / initial balance date flag | G111: flag | H111: =SUM(J111:CA111) -> 1 | J111: =IF(J110 = $F109, 1, 0) -> 0 | K111: 0 | L111: 0 | M111: 0 | N111: 0 | O111: 0 | P111: 0 | Q111: 1 | R111: 0 | S111: 0

Sheet Indexation
A1: =RIGHT(CELL("filename", $A$1), LEN(CELL("filename", $A$1)) - SEARCH("]", CELL("filename", $A$1))) -> Indexation
E2: =Time!E$25 -> Model period ending | J2: =Time!J$25 -> 2013-03-31 | K2: =Time!K$25 -> 2014-03-31 | L2: =Time!L$25 -> 2015-03-31 | M2: =Time!M$25 -> 2016-03-31 | N2: =Time!N$25 -> 2017-03-31 | O2: =Time!O$25 -> 2018-03-31 | P2: =Time!P$25 -> 2019-03-31 | Q2: =Time!Q$25 -> 2020-03-31 | R2: =Time!R$25 -> 2021-03-31 | S2: =Time!S$25 -> 2022-03-31 | T2: =Time!T$25 -> 2023-03-31 | U2: =Time!U$25 -> 2024-03-31
E3: =Time!E$80 -> Timeline label | J3: =Time!J$80 -> Pre-Fcst | K3: =Time!K$80 -> Pre-Fcst | L3: =Time!L$80 -> Pre-Fcst | M3: =Time!M$80 -> Pre-Fcst | N3: =Time!N$80 -> Pre-Fcst | O3: =Time!O$80 -> Pre-Fcst | P3: =Time!P$80 -> Pre-Fcst | Q3: =Time!Q$80 -> Pre-Fcst | R3: =Time!R$80 -> Forecast | S3: =Time!S$80 -> Forecast | T3: =Time!T$80 -> Forecast | U3: =Time!U$80 -> Forecast
E4: =Time!E$103 -> Financial year ending | J4: =Time!J$103 -> 2013 | K4: =Time!K$103 -> 2014 | L4: =Time!L$103 -> 2015 | M4: =Time!M$103 -> 2016 | N4: =Time!N$103 -> 2017 | O4: =Time!O$103 -> 2018 | P4: =Time!P$103 -> 2019 | Q4: =Time!Q$103 -> 2020 | R4: =Time!R$103 -> 2021 | S4: =Time!S$103 -> 2022 | T4: =Time!T$103 -> 2023 | U4: =Time!U$103 -> 2024
E5: =Time!E$10 -> Model column counter | F5: Constant | G5: Unit | H5: Total | J5: =Time!J$10 -> 1 | K5: =Time!K$10 -> 2 | L5: =Time!L$10 -> 3 | M5: =Time!M$10 -> 4 | N5: =Time!N$10 -> 5 | O5: =Time!O$10 -> 6 | P5: =Time!P$10 -> 7 | Q5: =Time!Q$10 -> 8 | R5: =Time!R$10 -> 9 | S5: =Time!S$10 -> 10 | T5: =Time!T$10 -> 11 | U5: =Time!U$10 -> 12
A7: CPIH INDEXATION
B9: CPIH: Index value series
E10: =Inputs!E$36 -> Consumer Price Index for April | F10: =Inputs!F$36 -> 0 | G10: =Inputs!G$36 -> index | H10: =Inputs!H$36 -> 0 | I10: =Inputs!I$36 -> 0 | J10: =Inputs!J$36 -> 95.9 | K10: =Inputs!K$36 -> 98 | L10: =Inputs!L$36 -> 99.6 | M10: =Inputs!M$36 -> 99.9 | N10: =Inputs!N$36 -> 100.6 | O10: =Inputs!O$36 -> 103.2 | P10: =Inputs!P$36 -> 0 | Q10: =Inputs!Q$36 -> 0 | R10: =Inputs!R$36 -> 0 | S10: =Inputs!S$36 -> 0 | T10: =Inputs!T$36 -> 0 | U10: =Inputs!U$36 -> 0
E11: =Inputs!E$37 -> Consumer Price Index for May | F11: =Inputs!F$37 -> 0 | G11: =Inputs!G$37 -> index | H11: =Inputs!H$37 -> 0 | I11: =Inputs!I$37 -> 0 | J11: =Inputs!J$37 -> 95.9 | K11: =Inputs!K$37 -> 98.2 | L11: =Inputs!L$37 -> 99.6 | M11: =Inputs!M$37 -> 100.1 | N11: =Inputs!N$37 -> 100.8 | O11: =Inputs!O$37 -> 103.5 | P11: =Inputs!P$37 -> 0 | Q11: =Inputs!Q$37 -> 0 | R11: =Inputs!R$37 -> 0 | S11: =Inputs!S$37 -> 0 | T11: =Inputs!T$37 -> 0 | U11: =Inputs!U$37 -> 0
E12: =Inputs!E$38 -> Consumer Price Index for June | F12: =Inputs!F$38 -> 0 | G12: =Inputs!G$38 -> index | H12: =Inputs!H$38 -> 0 | I12: =Inputs!I$38 -> 0 | J12: =Inputs!J$38 -> 95.6 | K12: =Inputs!K$38 -> 98 | L12: =Inputs!L$38 -> 99.8 | M12: =Inputs!M$38 -> 100.1 | N12: =Inputs!N$38 -> 101 | O12: =Inputs!O$38 -> 103.7 | P12: =Inputs!P$38 -> 0 | Q12: =Inputs!Q$38 -> 0 | R12: =Inputs!R$38 -> 0 | S12: =Inputs!S$38 -> 0 | T12: =Inputs!T$38 -> 0 | U12: =Inputs!U$38 -> 0
E13: =Inputs!E$39 -> Consumer Price Index for July | F13: =Inputs!F$39 -> 0 | G13: =Inputs!G$39 -> index | H13: =Inputs!H$39 -> 0 | I13: =Inputs!I$39 -> 0 | J13: =Inputs!J$39 -> 95.7 | K13: =Inputs!K$39 -> 98 | L13: =Inputs!L$39 -> 99.6 | M13: =Inputs!M$39 -> 100 | N13: =Inputs!N$39 -> 100.9 | O13: =Inputs!O$39 -> 103.9 | P13: =Inputs!P$39 -> 0 | Q13: =Inputs!Q$39 -> 0 | R13: =Inputs!R$39 -> 0 | S13: =Inputs!S$39 -> 0 | T13: =Inputs!T$39 -> 0 | U13: =Inputs!U$39 -> 0
E14: =Inputs!E$40 -> Consumer Price Index for August | F14: =Inputs!F$40 -> 0 | G14: =Inputs!G$40 -> index | H14: =Inputs!H$40 -> 0 | I14: =Inputs!I$40 -> 0 | J14: =Inputs!J$40 -> 96.1 | K14: =Inputs!K$40 -> 98.4 | L14: =Inputs!L$40 -> 99.9 | M14: =Inputs!M$40 -> 100.3 | N14: =Inputs!N$40 -> 101.2 | O14: =Inputs!O$40 -> 104.1 | P14: =Inputs!P$40 -> 0 | Q14: =Inputs!Q$40 -> 0 | R14: =Inputs!R$40 -> 0 | S14: =Inputs!S$40 -> 0 | T14: =Inputs!T$40 -> 0 | U14: =Inputs!U$40 -> 0
E15: =Inputs!E$41 -> Consumer Price Index for September | F15: =Inputs!F$41 -> 0 | G15: =Inputs!G$41 -> index | H15: =Inputs!H$41 -> 0 | I15: =Inputs!I$41 -> 0 | J15: =Inputs!J$41 -> 96.4 | K15: =Inputs!K$41 -> 98.7 | L15: =Inputs!L$41 -> 100 | M15: =Inputs!M$41 -> 100.2 | N15: =Inputs!N$41 -> 101.5 | O15: =Inputs!O$41 -> 104.3 | P15: =Inputs!P$41 -> 0 | Q15: =Inputs!Q$41 -> 0 | R15: =Inputs!R$41 -> 0 | S15: =Inputs!S$41 -> 0 | T15: =Inputs!T$41 -> 0 | U15: =Inputs!U$41 -> 0
E16: =Inputs!E$42 -> Consumer Price Index for October | F16: =Inputs!F$42 -> 0 | G16: =Inputs!G$42 -> index | H16: =Inputs!H$42 -> 0 | I16: =Inputs!I$42 -> 0 | J16: =Inputs!J$42 -> 96.8 | K16: =Inputs!K$42 -> 98.8 | L16: =Inputs!L$42 -> 100.1 | M16: =Inputs!M$42 -> 100.3 | N16: =Inputs!N$42 -> 101.6 | O16: =Inputs!O$42 -> 104.5 | P16: =Inputs!P$42 -> 0 | Q16: =Inputs!Q$42 -> 0 | R16: =Inputs!R$42 -> 0 | S16: =Inputs!S$42 -> 0 | T16: =Inputs!T$42 -> 0 | U16: =Inputs!U$42 -> 0
E17: =Inputs!E$43 -> Consumer Price Index for November | F17: =Inputs!F$43 -> 0 | G17: =Inputs!G$43 -> index | H17: =Inputs!H$43 -> 0 | I17: =Inputs!I$43 -> 0 | J17: =Inputs!J$43 -> 97 | K17: =Inputs!K$43 -> 98.8 | L17: =Inputs!L$43 -> 99.9 | M17: =Inputs!M$43 -> 100.3 | N17: =Inputs!N$43 -> 101.8 | O17: =Inputs!O$43 -> 104.7 | P17: =Inputs!P$43 -> 0 | Q17: =Inputs!Q$43 -> 0 | R17: =Inputs!R$43 -> 0 | S17: =Inputs!S$43 -> 0 | T17: =Inputs!T$43 -> 0 | U17: =Inputs!U$43 -> 0
E18: =Inputs!E$44 -> Consumer Price Index for December | F18: =Inputs!F$44 -> 0 | G18: =Inputs!G$44 -> index | H18: =Inputs!H$44 -> 0 | I18: =Inputs!I$44 -> 0 | J18: =Inputs!J$44 -> 97.3 | K18: =Inputs!K$44 -> 99.2 | L18: =Inputs!L$44 -> 99.9 | M18: =Inputs!M$44 -> 100.4 | N18: =Inputs!N$44 -> 102.2 | O18: =Inputs!O$44 -> 104.9 | P18: =Inputs!P$44 -> 0 | Q18: =Inputs!Q$44 -> 0 | R18: =Inputs!R$44 -> 0 | S18: =Inputs!S$44 -> 0 | T18: =Inputs!T$44 -> 0 | U18: =Inputs!U$44 -> 0
E19: =Inputs!E$45 -> Consumer Price Index for January | F19: =Inputs!F$45 -> 0 | G19: =Inputs!G$45 -> index | H19: =Inputs!H$45 -> 0 | I19: =Inputs!I$45 -> 0 | J19: =Inputs!J$45 -> 97 | K19: =Inputs!K$45 -> 98.7 | L19: =Inputs!L$45 -> 99.2 | M19: =Inputs!M$45 -> 99.9 | N19: =Inputs!N$45 -> 101.8 | O19: =Inputs!O$45 -> 105.1 | P19: =Inputs!P$45 -> 0 | Q19: =Inputs!Q$45 -> 0 | R19: =Inputs!R$45 -> 0 | S19: =Inputs!S$45 -> 0 | T19: =Inputs!T$45 -> 0 | U19: =Inputs!U$45 -> 0
E20: =Inputs!E$46 -> Consumer Price Index for February | F20: =Inputs!F$46 -> 0 | G20: =Inputs!G$46 -> index | H20: =Inputs!H$46 -> 0 | I20: =Inputs!I$46 -> 0 | J20: =Inputs!J$46 -> 97.5 | K20: =Inputs!K$46 -> 99.1 | L20: =Inputs!L$46 -> 99.5 | M20: =Inputs!M$46 -> 100.1 | N20: =Inputs!N$46 -> 102.4 | O20: =Inputs!O$46 -> 105.3 | P20: =Inputs!P$46 -> 0 | Q20: =Inputs!Q$46 -> 0 | R20: =Inputs!R$46 -> 0 | S20: =Inputs!S$46 -> 0 | T20: =Inputs!T$46 -> 0 | U20: =Inputs!U$46 -> 0
E21: =Inputs!E$47 -> Consumer Price Index for March | F21: =Inputs!F$47 -> 0 | G21: =Inputs!G$47 -> index | H21: =Inputs!H$47 -> 0 | I21: =Inputs!I$47 -> 0 | J21: =Inputs!J$47 -> 97.8 | K21: =Inputs!K$47 -> 99.3 | L21: =Inputs!L$47 -> 99.6 | M21: =Inputs!M$47 -> 100.4 | N21: =Inputs!N$47 -> 102.7 | O21: =Inputs!O$47 -> 105.5 | P21: =Inputs!P$47 -> 0 | Q21: =Inputs!Q$47 -> 0 | R21: =Inputs!R$47 -> 0 | S21: =Inputs!S$47 -> 0 | T21: =Inputs!T$47 -> 0 | U21: =Inputs!U$47 -> 0
E23: =Inputs!E$49 -> CPIH: Assumed percentage increase for unpopulated monthly values | F23: =Inputs!F$49 -> 0 | G23: =Inputs!G$49 -> % | H23: =Inputs!H$49 -> 0 | I23: =Inputs!I$49 -> 0 | J23: =Inputs!J$49 -> 0 | K23: =Inputs!K$49 -> 0 | L23: =Inputs!L$49 -> 0 | M23: =Inputs!M$49 -> 0 | N23: =Inputs!N$49 -> 0 | O23: =Inputs!O$49 -> 0 | P23: =Inputs!P$49 -> 0.02 | Q23: =Inputs!Q$49 -> 0.02 | R23: =Inputs!R$49 -> 0 | S23: =Inputs!S$49 -> 0 | T23: =Inputs!T$49 -> 0 | U23: =Inputs!U$49 -> 0
E25: CPIH: April - index | G25: index | J25: =IF(J10 > 0, J10, I25 * (1 + J$23)) -> 95.9 | K25: =IF(K10 > 0, K10, J25 * (1 + K$23)) -> 98 | L25: 99.6 | M25: 99.9 | N25: 100.6 | O25: 103.2 | P25: 105.264 | Q25: 107.36928 | R25: 107.36928 | S25: 107.36928 | T25: 107.36928 | U25: 107.36928
E26: CPIH: May - index | G26: index | J26: =IF(J11 > 0, J11, I26 * (1 + J$23)) -> 95.9 | K26: 98.2 | L26: 99.6 | M26: 100.1 | N26: 100.8 | O26: 103.5 | P26: 105.57 | Q26: 107.6814 | R26: 107.6814 | S26: 107.6814 | T26: 107.6814 | U26: 107.6814
E27: CPIH: June - index | G27: index | J27: 95.6 | K27: 98 | L27: 99.8 | M27: 100.1 | N27: 101 | O27: 103.7 | P27: 105.774 | Q27: 107.88948 | R27: 107.88948 | S27: 107.88948 | T27: 107.88948 | U27: 107.88948
E28: CPIH: July - index | G28: index | J28: 95.7 | K28: 98 | L28: 99.6 | M28: 100 | N28: 100.9 | O28: 103.9 | P28: 105.978 | Q28: 108.09756 | R28: 108.09756 | S28: 108.09756 | T28: 108.09756 | U28: 108.09756
E29: CPIH: August - index | G29: index | J29: 96.1 | K29: 98.4 | L29: 99.9 | M29: 100.3 | N29: 101.2 | O29: 104.1 | P29: 106.182 | Q29: 108.30564 | R29: 108.30564 | S29: 108.30564 | T29: 108.30564 | U29: 108.30564
E30: CPIH: September- index | G30: index | J30: 96.4 | K30: 98.7 | L30: 100 | M30: 100.2 | N30: 101.5 | O30: 104.3 | P30: 106.386 | Q30: 108.51372 | R30: 108.51372 | S30: 108.51372 | T30: 108.51372 | U30: 108.51372
E31: CPIH: October - index | G31: index | J31: 96.8 | K31: 98.8 | L31: 100.1 | M31: 100.3 | N31: 101.6 | O31: 104.5 | P31: 106.59 | Q31: 108.7218 | R31: 108.7218 | S31: 108.7218 | T31: 108.7218 | U31: 108.7218
E32: CPIH: November - index | G32: index | J32: 97 | K32: 98.8 | L32: 99.9 | M32: 100.3 | N32: 101.8 | O32: 104.7 | P32: 106.794 | Q32: 108.92988 | R32: 108.92988 | S32: 108.92988 | T32: 108.92988 | U32: 108.92988
E33: CPIH: December - index | G33: index | J33: 97.3 | K33: 99.2 | L33: 99.9 | M33: 100.4 | N33: 102.2 | O33: 104.9 | P33: 106.998 | Q33: 109.13796 | R33: 109.13796 | S33: 109.13796 | T33: 109.13796 | U33: 109.13796
E34: CPIH: January - index | G34: index | J34: 97 | K34: 98.7 | L34: 99.2 | M34: 99.9 | N34: 101.8 | O34: 105.1 | P34: 107.202 | Q34: 109.34604 | R34: 109.34604 | S34: 109.34604 | T34: 109.34604 | U34: 109.34604
E35: CPIH: February - index | G35: index | J35: 97.5 | K35: 99.1 | L35: 99.5 | M35: 100.1 | N35: 102.4 | O35: 105.3 | P35: 107.406 | Q35: 109.55412 | R35: 109.55412 | S35: 109.55412 | T35: 109.55412 | U35: 109.55412
E36: CPIH: March - index | G36: index | J36: 97.8 | K36: 99.3 | L36: 99.6 | M36: 100.4 | N36: 102.7 | O36: 105.5 | P36: 107.61 | Q36: 109.7622 | R36: 109.7622 | S36: 109.7622 | T36: 109.7622 | U36: 109.7622
E38: CPIH: Financial year average - index | G38: index | J38: =AVERAGE(J25:J36) -> 96.58333333 | K38: 98.6 | L38: 99.725 | M38: 100.1666667 | N38: 101.5416667 | O38: 104.3916667 | P38: 106.4795 | Q38: 108.60909 | R38: 108.60909 | S38: 108.60909 | T38: 108.60909 | U38: 108.60909
A41: RPI INDEXATION
B43: RPI: Index value series
E44: =Inputs!E$67 -> Retail Price Index for April | F44: =Inputs!F$67 -> 0 | G44: =Inputs!G$67 -> index | H44: =Inputs!H$67 -> 0 | I44: =Inputs!I$67 -> 0 | J44: =Inputs!J$67 -> 242.5 | K44: =Inputs!K$67 -> 249.5 | L44: =Inputs!L$67 -> 255.7 | M44: =Inputs!M$67 -> 258 | N44: =Inputs!N$67 -> 261.4 | O44: =Inputs!O$67 -> 270.6 | P44: =Inputs!P$67 -> 0 | Q44: =Inputs!Q$67 -> 0 | R44: =Inputs!R$67 -> 0 | S44: =Inputs!S$67 -> 0 | T44: =Inputs!T$67 -> 0 | U44: =Inputs!U$67 -> 0
E45: =Inputs!E$68 -> Retail Price Index for May | F45: =Inputs!F$68 -> 0 | G45: =Inputs!G$68 -> index | H45: =Inputs!H$68 -> 0 | I45: =Inputs!I$68 -> 0 | J45: =Inputs!J$68 -> 242.4 | K45: =Inputs!K$68 -> 250 | L45: =Inputs!L$68 -> 255.9 | M45: =Inputs!M$68 -> 258.5 | N45: =Inputs!N$68 -> 262.1 | O45: =Inputs!O$68 -> 271.7 | P45: =Inputs!P$68 -> 0 | Q45: =Inputs!Q$68 -> 0 | R45: =Inputs!R$68 -> 0 | S45: =Inputs!S$68 -> 0 | T45: =Inputs!T$68 -> 0 | U45: =Inputs!U$68 -> 0
E46: =Inputs!E$69 -> Retail Price Index for June | F46: =Inputs!F$69 -> 0 | G46: =Inputs!G$69 -> index | H46: =Inputs!H$69 -> 0 | I46: =Inputs!I$69 -> 0 | J46: =Inputs!J$69 -> 241.8 | K46: =Inputs!K$69 -> 249.7 | L46: =Inputs!L$69 -> 256.3 | M46: =Inputs!M$69 -> 258.9 | N46: =Inputs!N$69 -> 263.1 | O46: =Inputs!O$69 -> 272 | P46: =Inputs!P$69 -> 0 | Q46: =Inputs!Q$69 -> 0 | R46: =Inputs!R$69 -> 0 | S46: =Inputs!S$69 -> 0 | T46: =Inputs!T$69 -> 0 | U46: =Inputs!U$69 -> 0
E47: =Inputs!E$70 -> Retail Price Index for July | F47: =Inputs!F$70 -> 0 | G47: =Inputs!G$70 -> index | H47: =Inputs!H$70 -> 0 | I47: =Inputs!I$70 -> 0 | J47: =Inputs!J$70 -> 242.1 | K47: =Inputs!K$70 -> 249.7 | L47: =Inputs!L$70 -> 256 | M47: =Inputs!M$70 -> 258.6 | N47: =Inputs!N$70 -> 263.4 | O47: =Inputs!O$70 -> 272.3 | P47: =Inputs!P$70 -> 0 | Q47: =Inputs!Q$70 -> 0 | R47: =Inputs!R$70 -> 0 | S47: =Inputs!S$70 -> 0 | T47: =Inputs!T$70 -> 0 | U47: =Inputs!U$70 -> 0
E48: =Inputs!E$71 -> Retail Price Index for August | F48: =Inputs!F$71 -> 0 | G48: =Inputs!G$71 -> index | H48: =Inputs!H$71 -> 0 | I48: =Inputs!I$71 -> 0 | J48: =Inputs!J$71 -> 243 | K48: =Inputs!K$71 -> 251 | L48: =Inputs!L$71 -> 257 | M48: =Inputs!M$71 -> 259.8 | N48: =Inputs!N$71 -> 264.4 | O48: =Inputs!O$71 -> 272.6 | P48: =Inputs!P$71 -> 0 | Q48: =Inputs!Q$71 -> 0 | R48: =Inputs!R$71 -> 0 | S48: =Inputs!S$71 -> 0 | T48: =Inputs!T$71 -> 0 | U48: =Inputs!U$71 -> 0
E49: =Inputs!E$72 -> Retail Price Index for September | F49: =Inputs!F$72 -> 0 | G49: =Inputs!G$72 -> index | H49: =Inputs!H$72 -> 0 | I49: =Inputs!I$72 -> 0 | J49: =Inputs!J$72 -> 244.2 | K49: =Inputs!K$72 -> 251.9 | L49: =Inputs!L$72 -> 257.6 | M49: =Inputs!M$72 -> 259.6 | N49: =Inputs!N$72 -> 264.9 | O49: =Inputs!O$72 -> 272.9 | P49: =Inputs!P$72 -> 0 | Q49: =Inputs!Q$72 -> 0 | R49: =Inputs!R$72 -> 0 | S49: =Inputs!S$72 -> 0 | T49: =Inputs!T$72 -> 0 | U49: =Inputs!U$72 -> 0
E50: =Inputs!E$73 -> Retail Price Index for October | F50: =Inputs!F$73 -> 0 | G50: =Inputs!G$73 -> index | H50: =Inputs!H$73 -> 0 | I50: =Inputs!I$73 -> 0 | J50: =Inputs!J$73 -> 245.6 | K50: =Inputs!K$73 -> 251.9 | L50: =Inputs!L$73 -> 257.7 | M50: =Inputs!M$73 -> 259.5 | N50: =Inputs!N$73 -> 264.8 | O50: =Inputs!O$73 -> 273.2 | P50: =Inputs!P$73 -> 0 | Q50: =Inputs!Q$73 -> 0 | R50: =Inputs!R$73 -> 0 | S50: =Inputs!S$73 -> 0 | T50: =Inputs!T$73 -> 0 | U50: =Inputs!U$73 -> 0
E51: =Inputs!E$74 -> Retail Price Index for November | F51: =Inputs!F$74 -> 0 | G51: =Inputs!G$74 -> index | H51: =Inputs!H$74 -> 0 | I51: =Inputs!I$74 -> 0 | J51: =Inputs!J$74 -> 245.6 | K51: =Inputs!K$74 -> 252.1 | L51: =Inputs!L$74 -> 257.1 | M51: =Inputs!M$74 -> 259.8 | N51: =Inputs!N$74 -> 265.5 | O51: =Inputs!O$74 -> 273.5 | P51: =Inputs!P$74 -> 0 | Q51: =Inputs!Q$74 -> 0 | R51: =Inputs!R$74 -> 0 | S51: =Inputs!S$74 -> 0 | T51: =Inputs!T$74 -> 0 | U51: =Inputs!U$74 -> 0
E52: =Inputs!E$75 -> Retail Price Index for December | F52: =Inputs!F$75 -> 0 | G52: =Inputs!G$75 -> index | H52: =Inputs!H$75 -> 0 | I52: =Inputs!I$75 -> 0 | J52: =Inputs!J$75 -> 246.8 | K52: =Inputs!K$75 -> 253.4 | L52: =Inputs!L$75 -> 257.5 | M52: =Inputs!M$75 -> 260.6 | N52: =Inputs!N$75 -> 267.1 | O52: =Inputs!O$75 -> 273.8 | P52: =Inputs!P$75 -> 0 | Q52: =Inputs!Q$75 -> 0 | R52: =Inputs!R$75 -> 0 | S52: =Inputs!S$75 -> 0 | T52: =Inputs!T$75 -> 0 | U52: =Inputs!U$75 -> 0
E53: =Inputs!E$76 -> Retail Price Index for January | F53: =Inputs!F$76 -> 0 | G53: =Inputs!G$76 -> index | H53: =Inputs!H$76 -> 0 | I53: =Inputs!I$76 -> 0 | J53: =Inputs!J$76 -> 245.8 | K53: =Inputs!K$76 -> 252.6 | L53: =Inputs!L$76 -> 255.4 | M53: =Inputs!M$76 -> 258.8 | N53: =Inputs!N$76 -> 265.5 | O53: =Inputs!O$76 -> 274.1 | P53: =Inputs!P$76 -> 0 | Q53: =Inputs!Q$76 -> 0 | R53: =Inputs!R$76 -> 0 | S53: =Inputs!S$76 -> 0 | T53: =Inputs!T$76 -> 0 | U53: =Inputs!U$76 -> 0
E54: =Inputs!E$77 -> Retail Price Index for February | F54: =Inputs!F$77 -> 0 | G54: =Inputs!G$77 -> index | H54: =Inputs!H$77 -> 0 | I54: =Inputs!I$77 -> 0 | J54: =Inputs!J$77 -> 247.6 | K54: =Inputs!K$77 -> 254.2 | L54: =Inputs!L$77 -> 256.7 | M54: =Inputs!M$77 -> 260 | N54: =Inputs!N$77 -> 268.4 | O54: =Inputs!O$77 -> 274.4 | P54: =Inputs!P$77 -> 0 | Q54: =Inputs!Q$77 -> 0 | R54: =Inputs!R$77 -> 0 | S54: =Inputs!S$77 -> 0 | T54: =Inputs!T$77 -> 0 | U54: =Inputs!U$77 -> 0
E55: =Inputs!E$78 -> Retail Price Index for March | F55: =Inputs!F$78 -> 0 | G55: =Inputs!G$78 -> index | H55: =Inputs!H$78 -> 0 | I55: =Inputs!I$78 -> 0 | J55: =Inputs!J$78 -> 248.7 | K55: =Inputs!K$78 -> 254.8 | L55: =Inputs!L$78 -> 257.1 | M55: =Inputs!M$78 -> 261.1 | N55: =Inputs!N$78 -> 269.3 | O55: =Inputs!O$78 -> 274.7 | P55: =Inputs!P$78 -> 0 | Q55: =Inputs!Q$78 -> 0 | R55: =Inputs!R$78 -> 0 | S55: =Inputs!S$78 -> 0 | T55: =Inputs!T$78 -> 0 | U55: =Inputs!U$78 -> 0
E57: =Inputs!E$80 -> RPI: Assumed percentage increase for unpopulated monthly values | F57: =Inputs!F$80 -> 0 | G57: =Inputs!G$80 -> % | H57: =Inputs!H$80 -> 0 | I57: =Inputs!I$80 -> 0 | J57: =Inputs!J$80 -> 0 | K57: =Inputs!K$80 -> 0 | L57: =Inputs!L$80 -> 0 | M57: =Inputs!M$80 -> 0 | N57: =Inputs!N$80 -> 0 | O57: =Inputs!O$80 -> 0 | P57: =Inputs!P$80 -> 0.028 | Q57: =Inputs!Q$80 -> 0.028 | R57: =Inputs!R$80 -> 0 | S57: =Inputs!S$80 -> 0 | T57: =Inputs!T$80 -> 0 | U57: =Inputs!U$80 -> 0
E59: RPI: April - index | G59: index | J59: =IF(J44 > 0, J44, I59 * (1 + J$57)) -> 242.5 | K59: =IF(K44 > 0, K44, J59 * (1 + K$57)) -> 249.5 | L59: 255.7 | M59: 258 | N59: 261.4 | O59: 270.6 | P59: 278.1768 | Q59: 285.9657504 | R59: 285.9657504 | S59: 285.9657504 | T59: 285.9657504 | U59: 285.9657504
E60: RPI: May - index | G60: index | J60: =IF(J45 > 0, J45, I60 * (1 + J$57)) -> 242.4 | K60: 250 | L60: 255.9 | M60: 258.5 | N60: 262.1 | O60: 271.7 | P60: 279.3076 | Q60: 287.1282128 | R60: 287.1282128 | S60: 287.1282128 | T60: 287.1282128 | U60: 287.1282128
E61: RPI: June - index | G61: index | J61: =IF(J46 > 0, J46, I61 * (1 + J$57)) -> 241.8 | K61: 249.7 | L61: 256.3 | M61: 258.9 | N61: 263.1 | O61: 272 | P61: 279.616 | Q61: 287.445248 | R61: 287.445248 | S61: 287.445248 | T61: 287.445248 | U61: 287.445248
E62: RPI: July - index | G62: index | J62: =IF(J47 > 0, J47, I62 * (1 + J$57)) -> 242.1 | K62: 249.7 | L62: 256 | M62: 258.6 | N62: 263.4 | O62: 272.3 | P62: 279.9244 | Q62: 287.7622832 | R62: 287.7622832 | S62: 287.7622832 | T62: 287.7622832 | U62: 287.7622832
E63: RPI: August - index | G63: index | J63: =IF(J48 > 0, J48, I63 * (1 + J$57)) -> 243 | K63: 251 | L63: 257 | M63: 259.8 | N63: 264.4 | O63: 272.6 | P63: 280.2328 | Q63: 288.0793184 | R63: 288.0793184 | S63: 288.0793184 | T63: 288.0793184 | U63: 288.0793184
E64: RPI: September- index | G64: index | J64: =IF(J49 > 0, J49, I64 * (1 + J$57)) -> 244.2 | K64: 251.9 | L64: 257.6 | M64: 259.6 | N64: 264.9 | O64: 272.9 | P64: 280.5412 | Q64: 288.3963536 | R64: 288.3963536 | S64: 288.3963536 | T64: 288.3963536 | U64: 288.3963536
E65: RPI: October - index | G65: index | J65: =IF(J50 > 0, J50, I65 * (1 + J$57)) -> 245.6 | K65: 251.9 | L65: 257.7 | M65: 259.5 | N65: 264.8 | O65: 273.2 | P65: 280.8496 | Q65: 288.7133888 | R65: 288.7133888 | S65: 288.7133888 | T65: 288.7133888 | U65: 288.7133888
E66: RPI: November - index | G66: index | J66: =IF(J51 > 0, J51, I66 * (1 + J$57)) -> 245.6 | K66: 252.1 | L66: 257.1 | M66: 259.8 | N66: 265.5 | O66: 273.5 | P66: 281.158 | Q66: 289.030424 | R66: 289.030424 | S66: 289.030424 | T66: 289.030424 | U66: 289.030424
E67: RPI: December - index | G67: index | J67: =IF(J52 > 0, J52, I67 * (1 + J$57)) -> 246.8 | K67: 253.4 | L67: 257.5 | M67: 260.6 | N67: 267.1 | O67: 273.8 | P67: 281.4664 | Q67: 289.3474592 | R67: 289.3474592 | S67: 289.3474592 | T67: 289.3474592 | U67: 289.3474592
E68: RPI: January - index | G68: index | J68: =IF(J53 > 0, J53, I68 * (1 + J$57)) -> 245.8 | K68: 252.6 | L68: 255.4 | M68: 258.8 | N68: 265.5 | O68: 274.1 | P68: 281.7748 | Q68: 289.6644944 | R68: 289.6644944 | S68: 289.6644944 | T68: 289.6644944 | U68: 289.6644944
E69: RPI: February - index | G69: index | J69: =IF(J54 > 0, J54, I69 * (1 + J$57)) -> 247.6 | K69: 254.2 | L69: 256.7 | M69: 260 | N69: 268.4 | O69: 274.4 | P69: 282.0832 | Q69: 289.9815296 | R69: 289.9815296 | S69: 289.9815296 | T69: 289.9815296 | U69: 289.9815296
E70: RPI: March - index | G70: index | J70: =IF(J55 > 0, J55, I70 * (1 + J$57)) -> 248.7 | K70: 254.8 | L70: 257.1 | M70: 261.1 | N70: 269.3 | O70: 274.7 | P70: 282.3916 | Q70: 290.2985648 | R70: 290.2985648 | S70: 290.2985648 | T70: 290.2985648 | U70: 290.2985648
E72: RPI: Financial year average - index | G72: index | J72: =AVERAGE(J59:J70) -> 244.675 | K72: 251.7333333 | L72: 256.6666667 | M72: 259.4333333 | N72: 264.9916667 | O72: 272.9833333 | P72: 280.6268667 | Q72: 288.4844189 | R72: 288.4844189 | S72: 288.4844189 | T72: 288.4844189 | U72: 288.4844189
A75: INFLATION
B77: Inflation of 2013 base prices FYA - RPI
E78: =Inputs!E$84 -> Year reference for FYA base price 1 | F78: =Inputs!F$84 -> 2013 | G78: =Inputs!G$84 -> year #
E79: =Inputs!E$87 -> Year reference for FYE end price | F79: =Inputs!F$87 -> 2020 | G79: =Inputs!G$87 -> year #
E80: =E$72 -> RPI: Financial year average - index | F80: 0 | G80: index | H80: 0 | I80: 0 | J80: 244.675 | K80: 251.7333333 | L80: 256.6666667 | M80: 259.4333333 | N80: 264.9916667 | O80: 272.9833333 | P80: 280.6268667 | Q80: 288.4844189 | R80: 288.4844189 | S80: 288.4844189 | T80: 288.4844189 | U80: 288.4844189
E81: =E$70 -> RPI: March - index | F81: 0 | G81: index | H81: 0 | I81: 0 | J81: 248.7 | K81: 254.8 | L81: 257.1 | M81: 261.1 | N81: 269.3 | O81: 274.7 | P81: 282.3916 | Q81: 290.2985648 | R81: 290.2985648 | S81: 290.2985648 | T81: 290.2985648 | U81: 290.2985648
E82: ="RPI inflate from " & F78 & " FYA to " & F79 & " FYE" -> RPI inflate from 2013 FYA to 2020 FYE | F82: =INDEX($J81:$U81, 1, MATCH($F79,$J$4:$U$4)) / INDEX($J80:$U80, 1, MATCH($F78,$J$4:$U$4)) -> 1.186465985 | G82: factor
B84: Inflation of 2018 base prices FYA - RPI
E85: =Inputs!E$85 -> Year reference for FYA base price 2 | F85: =Inputs!F$85 -> 2018 | G85: =Inputs!G$85 -> year #
E86: =Inputs!E$87 -> Year reference for FYE end price | F86: =Inputs!F$87 -> 2020 | G86: =Inputs!G$87 -> year #
E87: =E$72 -> RPI: Financial year average - index | F87: 0 | G87: index | H87: 0 | I87: 0 | J87: 244.675 | K87: 251.7333333 | L87: 256.6666667 | M87: 259.4333333 | N87: 264.9916667 | O87: 272.9833333 | P87: 280.6268667 | Q87: 288.4844189 | R87: 288.4844189 | S87: 288.4844189 | T87: 288.4844189 | U87: 288.4844189
E88: =E$70 -> RPI: March - index | F88: 0 | G88: index | H88: 0 | I88: 0 | J88: 248.7 | K88: 254.8 | L88: 257.1 | M88: 261.1 | N88: 269.3 | O88: 274.7 | P88: 282.3916 | Q88: 290.2985648 | R88: 290.2985648 | S88: 290.2985648 | T88: 290.2985648 | U88: 290.2985648
E89: ="RPI inflate from " & F85 & " FYA to " & F86 & " FYE" -> RPI inflate from 2018 FYA to 2020 FYE | F89: =INDEX($J88:$U88, 1, MATCH($F86,$J$4:$U$4)) / INDEX($J87:$U87, 1, MATCH($F85,$J$4:$U$4)) -> 1.063429629 | G89: factor
B91: Inflation of 2018 base prices FYE - RPI
E92: =Inputs!E$86 -> Year reference for FYE base price | F92: =Inputs!F$86 -> 2018 | G92: =Inputs!G$86 -> year #
E93: =Inputs!E$87 -> Year reference for FYE end price | F93: =Inputs!F$87 -> 2020 | G93: =Inputs!G$87 -> year #
E94: =E$70 -> RPI: March - index | F94: 0 | G94: index | H94: 0 | I94: 0 | J94: 248.7 | K94: 254.8 | L94: 257.1 | M94: 261.1 | N94: 269.3 | O94: 274.7 | P94: 282.3916 | Q94: 290.2985648 | R94: 290.2985648 | S94: 290.2985648 | T94: 290.2985648 | U94: 290.2985648
E95: ="RPI inflate from " & F92 & " FYE to " & F93 & " FYE" -> RPI inflate from 2018 FYE to 2020 FYE | F95: =INDEX($J94:$U94, 1, MATCH($F93,$J$4:$U$4)) / INDEX($J94:$U94, 1, MATCH($F92,$J$4:$U$4)) -> 1.056784 | G95: factor
A98: DEFLATION
E100: =Inputs!E$91 -> Year reference for FYE base price | F100: =Inputs!F$91 -> 2020 | G100: =Inputs!G$91 -> year #
E101: =Inputs!E$92 -> Year reference for FYA end price | F101: =Inputs!F$92 -> 2018 | G101: =Inputs!G$92 -> year #
E102: =E$36 -> CPIH: March - index | F102: =F$36 -> 0 | G102: index | H102: 0 | I102: 0 | J102: 97.8 | K102: 99.3 | L102: 99.6 | M102: 100.4 | N102: 102.7 | O102: 105.5 | P102: 107.61 | Q102: 109.7622 | R102: 109.7622 | S102: 109.7622 | T102: 109.7622 | U102: 109.7622
E103: =E$38 -> CPIH: Financial year average - index | F103: 0 | G103: index | H103: 0 | I103: 0 | J103: 96.58333333 | K103: 98.6 | L103: 99.725 | M103: 100.1666667 | N103: 101.5416667 | O103: 104.3916667 | P103: 106.4795 | Q103: 108.60909 | R103: 108.60909 | S103: 108.60909 | T103: 108.60909 | U103: 108.60909
E104: ="CPIH deflate from " & F100 & " FYE to " & F101 & " FYA" -> CPIH deflate from 2020 FYE to 2018 FYA | F104: =INDEX($J103:$U103, 1, MATCH($F101,$J$4:$U$4)) / INDEX($J102:$U102, 1, MATCH($F100,$J$4:$U$4)) -> 0.9510711945 | G104: factor
E106: =E$36 -> CPIH: March - index | F106: =F$36 -> 0 | G106: index | H106: 0 | I106: 0 | J106: 97.8 | K106: 99.3 | L106: 99.6 | M106: 100.4 | N106: 102.7 | O106: 105.5 | P106: 107.61 | Q106: 109.7622 | R106: 109.7622 | S106: 109.7622 | T106: 109.7622 | U106: 109.7622
E107: =Time!E$111 -> Acquisition / initial balance date flag | F107: =Time!F$111 -> 0 | G107: =Time!G$111 -> flag | H107: =Time!H$111 -> 1 | I107: =Time!I$111 -> 0 | J107: =Time!J$111 -> 0 | K107: =Time!K$111 -> 0 | L107: =Time!L$111 -> 0 | M107: =Time!M$111 -> 0 | N107: =Time!N$111 -> 0 | O107: =Time!O$111 -> 0 | P107: =Time!P$111 -> 0 | Q107: =Time!Q$111 -> 1 | R107: =Time!R$111 -> 0 | S107: =Time!S$111 -> 0 | T107: =Time!T$111 -> 0 | U107: =Time!U$111 -> 0
E108: CPIH year end position for initial balance | F108: =SUMPRODUCT(J106:U106,J107:U107) -> 109.7622 | G108: index
E110: =E$38 -> CPIH: Financial year average - index | F110: 0 | G110: index | H110: 0 | I110: 0 | J110: 96.58333333 | K110: 98.6 | L110: 99.725 | M110: 100.1666667 | N110: 101.5416667 | O110: 104.3916667 | P110: 106.4795 | Q110: 108.60909 | R110: 108.60909 | S110: 108.60909 | T110: 108.60909 | U110: 108.60909
E111: =Time!E$111 -> Acquisition / initial balance date flag | F111: =Time!F$111 -> 0 | G111: =Time!G$111 -> flag | H111: =Time!H$111 -> 1 | I111: =Time!I$111 -> 0 | J111: =Time!J$111 -> 0 | K111: =Time!K$111 -> 0 | L111: =Time!L$111 -> 0 | M111: =Time!M$111 -> 0 | N111: =Time!N$111 -> 0 | O111: =Time!O$111 -> 0 | P111: =Time!P$111 -> 0 | Q111: =Time!Q$111 -> 1 | R111: =Time!R$111 -> 0 | S111: =Time!S$111 -> 0 | T111: =Time!T$111 -> 0 | U111: =Time!U$111 -> 0
E112: CPIH FYA position for initial balance | F112: =SUMPRODUCT(J110:U110,J111:U111) -> 108.60909 | G112: index

Sheet Calc
A1: =RIGHT(CELL("filename", $A$1), LEN(CELL("filename", $A$1)) - SEARCH("]", CELL("filename", $A$1))) -> Calc
E2: =Time!E$25 -> Model period ending | J2: =Time!J$25 -> 2013-03-31 | K2: =Time!K$25 -> 2014-03-31 | L2: =Time!L$25 -> 2015-03-31 | M2: =Time!M$25 -> 2016-03-31 | N2: =Time!N$25 -> 2017-03-31 | O2: =Time!O$25 -> 2018-03-31 | P2: =Time!P$25 -> 2019-03-31 | Q2: =Time!Q$25 -> 2020-03-31 | R2: =Time!R$25 -> 2021-03-31 | S2: =Time!S$25 -> 2022-03-31 | T2: =Time!T$25 -> 2023-03-31 | U2: =Time!U$25 -> 2024-03-31
E3: =Time!E$80 -> Timeline label | J3: =Time!J$80 -> Pre-Fcst | K3: =Time!K$80 -> Pre-Fcst | L3: =Time!L$80 -> Pre-Fcst | M3: =Time!M$80 -> Pre-Fcst | N3: =Time!N$80 -> Pre-Fcst | O3: =Time!O$80 -> Pre-Fcst | P3: =Time!P$80 -> Pre-Fcst | Q3: =Time!Q$80 -> Pre-Fcst | R3: =Time!R$80 -> Forecast | S3: =Time!S$80 -> Forecast | T3: =Time!T$80 -> Forecast | U3: =Time!U$80 -> Forecast
E4: =Time!E$103 -> Financial year ending | J4: =Time!J$103 -> 2013 | K4: =Time!K$103 -> 2014 | L4: =Time!L$103 -> 2015 | M4: =Time!M$103 -> 2016 | N4: =Time!N$103 -> 2017 | O4: =Time!O$103 -> 2018 | P4: =Time!P$103 -> 2019 | Q4: =Time!Q$103 -> 2020 | R4: =Time!R$103 -> 2021 | S4: =Time!S$103 -> 2022 | T4: =Time!T$103 -> 2023 | U4: =Time!U$103 -> 2024
E5: =Time!E$10 -> Model column counter | F5: Constant | G5: Unit | H5: Total | J5: =Time!J$10 -> 1 | K5: =Time!K$10 -> 2 | L5: =Time!L$10 -> 3 | M5: =Time!M$10 -> 4 | N5: =Time!N$10 -> 5 | O5: =Time!O$10 -> 6 | P5: =Time!P$10 -> 7 | Q5: =Time!Q$10 -> 8 | R5: =Time!R$10 -> 9 | S5: =Time!S$10 -> 10 | T5: =Time!T$10 -> 11 | U5: =Time!U$10 -> 12
A7: Indexation calculations in RCV feeder model
B9: This section of the model indexes RCV in a similar fashion to the RCV feeder model.
B10: RCV is indexed by RPI to 31 March 2020. It is then delfated from 31 March 2020 ro 2017/18 FYA by CPIH
B12: RCV closing balance at 31 March 2020
E13: =Inputs!E$133 -> RCV at 31 March 2020 (from PR14 FD) post adjustment | F13: =Inputs!F$133 -> 100 | G13: =Inputs!G$133 -> £m
E14: =Indexation!E$82 -> RPI inflate from 2013 FYA to 2020 FYE | F14: =Indexation!F$82 -> 1.186465985 | G14: =Indexation!G$82 -> factor
E15: RCV from feeder model at 31 March 2020 (post adjustment at 2020 FYE price base) | F15: =F13 * F$14 -> 118.6465985 | G15: £m
E17: =E$15 -> RCV from feeder model at 31 March 2020 (post adjustment at 2020 FYE price base) | F17: =F$15 -> 118.6465985 | G17: £m
E18: =Indexation!E$104 -> CPIH deflate from 2020 FYE to 2018 FYA | F18: =Indexation!F$104 -> 0.9510711945 | G18: =Indexation!G$104 -> factor | J18: =1/F18 -> 1.051445997
E19: 31 March 2020 RCV at 2017-18 CPIH deflated price base | F19: =F17 * F18 -> 112.8413621 | G19: £m
A21: Indexation carried out in financial model
B23: This section of the model indexes RCV in a similar fashion to the PR19 financial model
B25: Average CPI(H) - base index
E26: =Inputs!E$51 -> Consumer Price Index for April | F26: =Inputs!F$51 -> 103.2 | G26: =Inputs!G$51 -> index
E27: =Inputs!E$52 -> Consumer Price Index for May | F27: =Inputs!F$52 -> 103.5 | G27: =Inputs!G$52 -> index
E28: =Inputs!E$53 -> Consumer Price Index for June | F28: =Inputs!F$53 -> 103.7 | G28: =Inputs!G$53 -> index
E29: =Inputs!E$54 -> Consumer Price Index for July | F29: =Inputs!F$54 -> 103.9 | G29: =Inputs!G$54 -> index
E30: =Inputs!E$55 -> Consumer Price Index for August | F30: =Inputs!F$55 -> 104.1 | G30: =Inputs!G$55 -> index
E31: =Inputs!E$56 -> Consumer Price Index for September | F31: =Inputs!F$56 -> 104.3 | G31: =Inputs!G$56 -> index
E32: =Inputs!E$57 -> Consumer Price Index for October | F32: =Inputs!F$57 -> 104.5 | G32: =Inputs!G$57 -> index
E33: =Inputs!E$58 -> Consumer Price Index for November | F33: =Inputs!F$58 -> 104.7 | G33: =Inputs!G$58 -> index
E34: =Inputs!E$59 -> Consumer Price Index for December | F34: =Inputs!F$59 -> 104.9 | G34: =Inputs!G$59 -> index
E35: =Inputs!E$60 -> Consumer Price Index for January | F35: =Inputs!F$60 -> 105.1 | G35: =Inputs!G$60 -> index
E36: =Inputs!E$61 -> Consumer Price Index for February | F36: =Inputs!F$61 -> 105.3 | G36: =Inputs!G$61 -> index
E37: =Inputs!E$62 -> Consumer Price Index for March | F37: =Inputs!F$62 -> 105.5 | G37: =Inputs!G$62 -> index
E38: Average CPI(H) - base index - 2017-18 | F38: =AVERAGE(F26:F37) -> 104.3916667 | G38: index
B40: CPI(H): Fin year average - inflate from base year average
E41: =E$38 -> Average CPI(H) - base index - 2017-18 | F41: =F$38 -> 104.3916667 | G41: =G$38 -> index
E42: =Indexation!E$38 -> CPIH: Financial year average - index | F42: =Indexation!F$38 -> 0 | G42: =Indexation!G$38 -> index | H42: =Indexation!H$38 -> 0 | I42: =Indexation!I$38 -> 0 | J42: =Indexation!J$38 -> 96.58333333 | K42: =Indexation!K$38 -> 98.6 | L42: =Indexation!L$38 -> 99.725 | M42: =Indexation!M$38 -> 100.1666667 | N42: =Indexation!N$38 -> 101.5416667 | O42: =Indexation!O$38 -> 104.3916667 | P42: =Indexation!P$38 -> 106.4795 | Q42: =Indexation!Q$38 -> 108.60909 | R42: =Indexation!R$38 -> 108.60909 | S42: =Indexation!S$38 -> 108.60909 | T42: =Indexation!T$38 -> 108.60909 | U42: =Indexation!U$38 -> 108.60909
E43: CPI(H): Fin year average - inflate from base year 2017-18 average - CALC | G43: % | J43: =IF($F41 = 0, 0, J42 / $F41) -> 0.9252015646 | K43: 0.9445198372 | L43: 0.9552965594 | M43: 0.9595274208 | N43: 0.9726989702 | O43: 1 | P43: 1.02 | Q43: 1.0404 | R43: 1.0404 | S43: 1.0404 | T43: 1.0404 | U43: 1.0404
E45: =E$19 -> 31 March 2020 RCV at 2017-18 CPIH deflated price base | F45: =F$19 -> 112.8413621 | G45: =G$19 -> £m
E46: =E$43 -> CPI(H): Fin year average - inflate from base year 2017-18 average - CALC | F46: =F$43 -> 0 | G46: % | H46: 0 | I46: 0 | J46: 0.9252015646 | K46: 0.9445198372 | L46: 0.9552965594 | M46: 0.9595274208 | N46: 0.9726989702 | O46: 1 | P46: 1.02 | Q46: 1.0404 | R46: 1.0404 | S46: 1.0404 | T46: 1.0404 | U46: 1.0404
E47: =Time!E$111 -> Acquisition / initial balance date flag | F47: =Time!F$111 -> 0 | G47: =Time!G$111 -> flag | H47: =Time!H$111 -> 1 | I47: =Time!I$111 -> 0 | J47: =Time!J$111 -> 0 | K47: =Time!K$111 -> 0 | L47: =Time!L$111 -> 0 | M47: =Time!M$111 -> 0 | N47: =Time!N$111 -> 0 | O47: =Time!O$111 -> 0 | P47: =Time!P$111 -> 0 | Q47: =Time!Q$111 -> 1 | R47: =Time!R$111 -> 0 | S47: =Time!S$111 -> 0 | T47: =Time!T$111 -> 0 | U47: =Time!U$111 -> 0
E48: RCV balance at 31 March 2020 (nominal FYA prices) | G48: £m | J48: =$F45 *J46 *J47 -> 0 | K48: =$F45 *K46 *K47 -> 0 | L48: 0 | M48: 0 | N48: 0 | O48: 0 | P48: 0 | Q48: =$F45 *Q46 *Q47 -> 117.4001532 | R48: 0 | S48: 0 | T48: 0 | U48: 0
E50: =E$48 -> RCV balance at 31 March 2020 (nominal FYA prices) | F50: =F$48 -> 0 | G50: £m | H50: 0 | I50: 0 | J50: 0 | K50: 0 | L50: 0 | M50: 0 | N50: 0 | O50: 0 | P50: 0 | Q50: 117.4001532 | R50: 0 | S50: 0 | T50: 0 | U50: 0
E51: RCV opening balance in Financial model (nominal FYA prices) | F51: =SUM(J50:U50) -> 117.4001532 | G51: £m
A53: Check
B55: This section demonstrates that the difference between the numbers in the red boxes above is due to the difference between year end and year average CPI in 2019/20.
E57: =E$15 -> RCV from feeder model at 31 March 2020 (post adjustment at 2020 FYE price base) | F57: =F$15 -> 118.6465985 | G57: £m
E58: =E$51 -> RCV opening balance in Financial model (nominal FYA prices) | F58: =F$51 -> 117.4001532 | G58: =G$51 -> £m
E59: Difference in RCV balance between 31/3/2020 (RPI inflated) and financial model 31/3/2020 (CPIH FYA) | F59: =F57/F58 -1 -> 0.01061706713 | G59: %
E61: =Indexation!E$108 -> CPIH year end position for initial balance | F61: =Indexation!F$108 -> 109.7622 | G61: =Indexation!G$108 -> index
E62: =Indexation!E$112 -> CPIH FYA position for initial balance | F62: =Indexation!F$112 -> 108.60909 | G62: =Indexation!G$112 -> index
E63: Difference between year end and financial year average CPIH for initial balance | F63: =F61/F62 -1 -> 0.01061706713 | G63: %
E65: =E$59 -> Difference in RCV balance between 31/3/2020 (RPI inflated) and financial model 31/3/2020 (CPIH FYA) | F65: =F$59 -> 0.01061706713 | G65: =G$59 -> %
E66: =E$63 -> Difference between year end and financial year average CPIH for initial balance | F66: =F$63 -> 0.01061706713 | G66: =G$63 -> %
E67: Check | F67: =F65=F66 -> TRUE
